Cogmind - Beta 17.1 @@@ ROGUE MODE // 2026.09.16 @ 10:49:24 Player: KURIIRI Result: Self-destructed Performance ------------- Evolutions (1) 500 Regions Visited (5) 1000 Robots Destroyed (92) 460 Value Destroyed (2472) 2472 Prototype IDs (3) 60 Alien Tech Used (0) 0 Bonus (8025) 8025 TOTAL SCORE: 12517 Bonus ------- High Alert Combat Kills 292 Follower Combat Kills 275 Prayed to X0-1V1 5000 Major X0-1V1 Interference 1800 Entered Garrisons 200 Used RIF Installer 500 Friendly Fire -42 Cogmind --------- Core Integrity 199/300 Matter 900/900 Energy 266/300 System Corruption 1% Temperature Warm (165) Movement Treading (160) Location -9/Recycling Parts ------- > --- POWER (1) -------- (None) > --- PROPULSION (3) --- Light Treads Light Treads Light Treads > --- UTILITY (2) ------ Advanced Heat Sink Large Storage Unit > --- WEAPON (3) ------- Beamcaster Advanced Beam Cannon Advanced Beam Cannon > --- INVENTORY (15) --- Light Treads Light Treads Carbon-fiber Leg Advanced Heat Sink Advanced Targeting Computer Hardened Medium Armor Plating Heavy Assault Rifle Minigun High-powered Shotgun Gauss Rifle Assault Cannon Assault Cannon Rocket Launcher Improved Grenade Launcher Power Maul Peak State ------------ > --- POWER ------------ Improved Ion Engine > --- PROPULSION ------- Light Treads Light Treads Light Treads > --- UTILITY ---------- Large Storage Unit X0-1V1's Piety Tracker > --- WEAPON ----------- Beamcaster Advanced Beam Cannon Advanced Beam Cannon > --- INVENTORY -------- Light Treads Light Treads Carbon-fiber Leg Advanced Heat Sink Advanced Heat Sink Advanced Targeting Computer Hardened Medium Armor Plating Heavy Assault Rifle Minigun High-powered Shotgun Gauss Rifle Assault Cannon Assault Cannon Improved Grenade Launcher Power Maul [Rating: 34] Favorites ----------- Power Improved Ion Engine Engine Improved Ion Engine Propulsion Light Treads Treads Light Treads Leg Aluminum Leg Wheel Wheel Utility Large Storage Unit Device Advanced Heat Sink Storage Large Storage Unit Processor Signal Interpreter Hackware Hacking Suite Protection Medium Armor Plating Weapon Advanced Beam Cannon Energy Gun EM Pulse Gun Energy Cannon Advanced Beam Cannon Ballistic Gun Heavy Assault Rifle Ballistic Cannon Assault Cannon Launcher Improved Grenade Launcher Impact Weapon Power Maul Build | -11 -10 -9 -9 -9 -9 ------- Run | Yrd Mat Mat Sto Gar Rec Slots Evolved 2 | . . 2 . . . Power . | . . . . . . Propulsion 1 | . . 1 . . . Utility . | . . . . . . Weapon 1 | . . 1 . . . Parts Attached 47 | 4 15 7 3 17 1 Power 5 | 1 3 . . 1 . Engine 5 | 1 3 . . 1 . Core . | . . . . . . Reactor . | . . . . . . Propulsion 13 | . 4 3 . 6 . Treads 11 | . 2 3 . 6 . Leg . | . . . . . . Wheel 2 | . 2 . . . . Hover . | . . . . . . Flight . | . . . . . . Utility 8 | 1 2 2 . 3 . Device 4 | 1 1 . . 2 . Storage 1 | . 1 . . . . Processor 1 | . . 1 . . . Hackware 1 | . . . . 1 . Protection 1 | . . 1 . . . Artifact . | . . . . . . Weapon 21 | 2 6 2 3 7 1 Energy Gun 7 | 2 3 . . 1 1 Energy Cannon 3 | . 1 . 1 1 . Ballistic Gun 7 | . 2 2 1 2 . Ballistic Cannon 2 | . . . . 2 . Launcher 1 | . . . . 1 . Special Weapon . | . . . . . . Impact Weapon 1 | . . . 1 . . Slashing Weapon . | . . . . . . Piercing Weapon . | . . . . . . Special Melee Weapon . | . . . . . . Unidentified Prototypes 3 | . 1 . 2 . . Parts Lost 6 | . 2 . . 3 1 Power 2 | . 1 . . . 1 Propulsion 3 | . . . . 3 . Utility . | . . . . . . Weapon 1 | . 1 . . . . Highest Loss Streak 1 | . 1 . . 1 1 To Critical Strikes . | . . . . . . Average Backups 12 | 6 11 14 13 13 14 Power 1 | 1 1 1 1 . . Propulsion 3 | 4 4 5 5 2 2 Utility 2 | . 2 3 1 3 3 Weapon 5 | 1 3 4 5 6 8 Tool/Special . | . . . . . . Unused Backups 18 | . 9 2 . 1 6 Power 2 | . 2 . . . . Propulsion 3 | . 2 . . . 1 Utility 9 | . 4 1 . 1 3 Weapon 4 | . 1 1 . . 2 Tool/Special . | . . . . . . Average Slot Usage (%) 93 | . 99 99 100 87 99 Engine 8 | . 13 11 11 4 10 Treads 26 | . 24 25 33 27 33 Wheel 1 | . 3 7 . . . Device 11 | . 14 10 . 10 11 Storage 12 | . 14 11 11 11 11 Energy Gun 9 | . 19 . . 3 8 Energy Cannon 9 | . 1 . 2 13 22 Ballistic Gun 6 | . 6 33 29 3 . Ballistic Cannon 3 | . . . . 8 . Impact Weapon 1 | . . . 1 3 2 Peak Build Rating 34 | 7 24 30 23 33 34 Average Rating 19 | 6 9 29 20 23 28 On Entrance 18 | 6 7 24 19 23 33 Avg Prop Armor Cover (%) 8 | . 8 9 . . . Naked Turns . | . . . . . . Heaviest Build 44 | 15 34 43 44 44 41 Greatest Support 62 | 20 40 62 62 62 60 Greatest Overweight (x) 1 | . 1 1 . 1 . Average Overweight (x) . | . . . . . . Largest Inventory Capacity 15 | 8 15 15 15 15 15 Average Capacity 14 | 8 12 15 15 15 15 Most Carried 15 | 6 15 15 15 15 15 Average Carried 12 | 6 11 14 13 13 14 Final Capacity 15 | 8 15 15 15 15 15 Final Carried 15 | 6 15 13 15 15 15 Class Distribution -------------------- 52% | Mutant 33% | Gunner 6% | Scavenger-Gunner 5% | Tank Dominant Class ---------------- Mutant | -10/Materials Gunner | -9/Materials Tank | -9/Storage Gunner | -9/Garrison Scavenger-Gunner | -9/Recycling Resources | -11 -10 -9 -9 -9 -9 ----------- Run | Yrd Mat Mat Sto Gar Rec Matter Collected 2169 | 218 245 199 170 902 435 Remotely . | . . . . . . Salvage Created 3298 | 144 1092 281 434 1002 345 Parts 213 | 12 80 15 20 72 14 Haulers Intercepted 4 | . 2 . 2 . . Recyclers Shooed 2 | . 1 . 1 . . Parts Field Recycled . | . . . . . . Retrieved Matter . | . . . . . . Parts Self-Destructed . | . . . . . . Prevented . | . . . . . . Parts Restored . | . . . . . . Kills | -11 -10 -9 -9 -9 -9 ------- Run | Yrd Mat Mat Sto Gar Rec Combat Hostiles Destroyed 69 | . 21 6 4 34 4 Melee 1 | . . . . 1 . Guns 43 | . 19 6 4 11 3 Cannons 8 | . . . . 7 1 AOE 17 | . 2 . . 15 . Classes Destroyed 17 | 2 7 2 . 5 1 Worker 2 | . 2 . . . . Builder 1 | . 1 . . . . Tunneler 4 | 3 1 . . . . Hauler 4 | . 2 . 2 . . Recycler 6 | 1 1 . 2 . 2 Operator 3 | . 2 . 1 . . Watcher 3 | . 3 . . . . Swarmer 18 | . 6 . . 12 . Saboteur 2 | . . . . 2 . Grunt 26 | . 15 3 3 5 . Brawler 1 | . . . . 1 . Duelist 1 | . . 1 . . . Sentry 16 | . . 2 1 10 3 Demolisher 1 | . . . . 1 . Specialist 2 | . . . . 2 . Hunter 1 | . . . . 1 . Scrapper 1 | . . . . . 1 Best Kill Streak 13 | 2 4 4 9 13 2 Combat Bots Only 13 | . 4 4 4 13 2 Max Kills in Single Turn 3 | 1 2 1 2 3 1 Gunslinging 1 | . 1 . . . . Exploded 3 | . 1 . . 3 . Melee 1 | . . . . 1 . Uniques/NPCs Destroyed . | . . . . . . Combat | -11 -10 -9 -9 -9 -9 -------- Run | Yrd Mat Mat Sto Gar Rec Hostile Shots Fired 223 | . 70 15 12 111 15 Missed 66 | . 20 6 3 34 3 Hits 157 | . 50 9 9 77 12 Melee 3 | . . . . 3 . Projectile 154 | . 50 9 9 74 12 Critical Strikes 8 | . 1 2 1 1 3 Damage Taken 2022 | . 554 131 116 966 255 Core 175 | . 74 31 . 48 22 Absorbed by Shields . | . . . . . . Core Remaining (%) 85 | 100 70 . . . . Volleys Fired 213 | 13 68 14 13 94 11 Largest 3 | 2 2 3 3 3 3 Hottest 211 | 80 80 71 71 191 211 Shots Fired 443 | 19 127 42 39 186 30 Gun 306 | 19 119 42 39 77 10 Cannon 125 | . 8 . . 97 20 Launcher 12 | . . . . 12 . Special . | . . . . . . Kinetic 160 | . 18 42 39 61 . Thermal 126 | 7 8 . . 81 30 Explosive 12 | . . . . 12 . Electromagnetic 145 | 12 101 . . 32 . Robot Hit Streak 19 | 11 12 14 7 19 9 Robot Miss Streak 7 | 2 7 2 2 3 2 Penetration Max . | . . . . . . Secondary Targets 6 | . 3 1 2 . . Max Gunslinging Chain 1 | . 1 1 1 . . Shots Hit Robots 255 | 14 74 30 25 93 19 Core Hits 130 | 4 46 9 11 52 8 Critical Kills 1 | . . . 1 . . Critical Parts Destroyed . | . . . . . . Critical Strikes 7 | 3 1 . 1 . 2 Burn 4 | 2 . . . . 2 Destroy 1 | . . . 1 . . Corrupt 2 | 1 1 . . . . Melee Attacks 22 | . . . 2 19 1 Impact 22 | . . . 2 19 1 Slashing . | . . . . . . Piercing . | . . . . . . Sneak Attacks 1 | . . . . . 1 Combat Hostiles . | . . . . . . Follow-up Attacks . | . . . . . . Damage Inflicted 5898 | 185 1417 521 436 2780 559 Guns 3257 | 185 1126 507 436 833 170 Cannons 1291 | . 86 . . 966 239 Explosions 1171 | . 190 . . 981 . Melee 126 | . . . . . 126 Ramming 53 | . 15 14 . . 24 Kinetic 2032 | . 215 507 436 874 . Thermal 1474 | 85 276 . . 704 409 Explosive 925 | . . . . 925 . Electromagnetic 1288 | 100 911 . . 277 . Impact 126 | . . . . . 126 Slashing . | . . . . . . Piercing . | . . . . . . Highest Corruption 1 | . . . . . 1 Average Corruption 1 | . . . . . 1 Corruption Purged . | . . . . . . Corruption Blocked . | . . . . . . Effects 2 | . . . . . 2 Message Errors 1 | . . . . . 1 Data Loss (major) 1 | . . . . . 1 Overload Shots . | . . . . . . Overflow Damage 101 | . . . . 5 96 Projectiles . | . . . . . . Explosions 5 | . . . . 5 . Melee 96 | . . . . . 96 Knockbacks 7 | . . . . 6 1 Impact 1 | . . . . . 1 Kinetic 6 | . . . . 6 . Secondary . | . . . . . . Self-Inflicted Damage 90 | . 48 . . 42 . Shots 2 | . 1 . . 1 . Rammed 14 | . 9 1 . . 4 Targets Rammed 15 | . 9 1 . . 5 Kicked . | . . . . . . Crushed 1 | . . . . . 1 Highest Temperature 437 | 108 138 60 175 391 437 Average Temperature 63 | 47 35 18 81 86 135 Received Heat Transfer 752 | . 177 72 84 222 197 Siege Activations . | . . . . . . Martial Activations . | . . . . . . Shielding Activations . | . . . . . . Robots Disrupted . | . . . . . . Combat Hostiles . | . . . . . . Robots Corrupted 1 | . . . . . 1 Combat Hostiles . | . . . . . . Parts Fried 5 | 2 1 . . 1 1 Impact Corruptions 2 | . . . . . 2 Robots Melted . | . . . . . . Combat Hostiles . | . . . . . . Parts Melted 4 | 2 . . . . 2 Heat Transferred 2700 | 407 435 . . 1103 755 Parts Sabotaged 11 | . . . . 11 . Parts Stolen . | . . . . . . Parts Stripped . | . . . . . . Power Chain Reactions 3 | . 2 . . 1 . Alert | -11 -10 -9 -9 -9 -9 ------- Run | Yrd Mat Mat Sto Gar Rec Maximum Alert Level 4 | . 1 1 . 4 2 Low Security (%) 29 | 100 61 25 100 3 . Level 1 22 | . 38 75 . 12 . Level 2 16 | . . . . 17 100 Level 3 12 | . . . . 26 . Level 4 18 | . . . . 39 . Level 5 . | . . . . . . High Security . | . . . . . . Max Security . | . . . . . . Sterilizations 1 | . 1 . . . . Peak Influence 1462 | 10 349 251 196 1462 685 Initial 657 | . . 140 97 112 657 Average 557 | 2 128 206 149 944 636 Influence Increases 2673 | 20 811 201 136 1380 125 Destroy 0b10 Robot/C 1540 | . 420 120 80 840 80 Destroy 0b10 Robot/NC 115 | 20 60 . 25 . 10 Destroy Leader 194 | . 110 40 24 20 . Allied During Kill 39 | . . . . 36 3 Successful Hack 35 | . 13 10 5 7 . Select Force Hacks 170 | . 110 30 . . 30 Disable Machine 45 | . 45 . . . . Anti-Garrison Action 250 | . . . . 250 . Destroy Structure 195 | . 8 1 2 182 2 Lose Combat Pursuer 90 | . 45 . . 45 . Influence Decreases 2111 | 20 478 303 194 91 1025 Entered New Map 1193 | . . 193 134 61 805 Time Decay 818 | 20 458 110 60 . 170 Lost Part 60 | . 20 . . 30 10 Lost Ally 40 | . . . . . 40 Squads Dispatched 9 | . 6 2 1 . . Investigation 5 | . 4 1 . . . Extermination . | . . . . . . Reinforcement 4 | . 2 1 1 . . Assault . | . . . . . . Garrison . | . . . . . . Intercept . | . . . . . . Searches Triggered . | . . . . . . Construction Impeded . | . . . . . . Haulers Reinforced . | . . . . . . Active Scanning Responses . | . . . . . . Cargo Convoy Interrupts . | . . . . . . Stealth | -11 -10 -9 -9 -9 -9 --------- Run | Yrd Mat Mat Sto Gar Rec Distress Signals 3 | . 2 1 . . . Communications Jammed . | . . . . . . Distress Signals . | . . . . . . Times Spotted 91 | . 32 5 5 42 7 Peak Tracking Total 5 | . 4 3 3 5 4 Tactical Retreats 4 | . 3 . . 1 . Traps | -11 -10 -9 -9 -9 -9 ------- Run | Yrd Mat Mat Sto Gar Rec Traps Triggered 1 | . . . . 1 . Indirectly . | . . . . . . Trap Hack Attempts . | . . . . . . Triggered . | . . . . . . Disarmed . | . . . . . . Reprogrammed . | . . . . . . Reused . | . . . . . . Traps Extracted . | . . . . . . Installed . | . . . . . . Triggered . | . . . . . . Machines | -11 -10 -9 -9 -9 -9 ---------- Run | Yrd Mat Mat Sto Gar Rec Machines Disabled 4 | . 3 . . . 1 Max in Single Turn 1 | . 1 . . . 1 Machines Repaired . | . . . . . . Machines Dismantled . | . . . . . . Machines Sabotaged 1 | . 1 . . . . Overloaded Fab Kills . | . . . . . . Hacking | -11 -10 -9 -9 -9 -9 --------- Run | Yrd Mat Mat Sto Gar Rec Machines Accessed 16 | . 6 3 2 3 2 Terminals 10 | . 4 1 1 3 1 Fabricators . | . . . . . . Repair Stations . | . . . . . . Recycling Units 4 | . 2 1 . . 1 Scanalyzers 1 | . . 1 . . . Garrison Access 1 | . . . 1 . . Total Hacks 41 | . 14 11 4 6 6 Successful 19 | . 7 7 3 1 1 Failed 22 | . 7 4 1 5 5 Catastrophic 5 | . 2 . . 2 1 Database Lockouts . | . . . . . . Manual 26 | . 15 7 1 . 3 Terminals 28 | . 12 5 2 6 3 Fabricators . | . . . . . . Repair Stations . | . . . . . . Recycling Units 7 | . 2 2 . . 3 Scanalyzers 4 | . . 4 . . . Garrison Access 2 | . . . 2 . . Terminal Hacks 7 | . 3 2 1 1 . Part Schematic 1 | . 1 . . . . Robot Analysis 4 | . 2 2 . . . Open Door 1 | . . . . 1 . Zone Layout 1 | . . . 1 . . Fabricator Hacks . | . . . . . . Repair Station Hacks . | . . . . . . Recycling Unit Hacks . | . . . . . . Scanalyzer 4 | . . 4 . . . Retrieve Study 4 | . . 4 . . . Garrison Access Hacks 1 | . . . 1 . . Unlock Access 1 | . . . 1 . . Unauthorized Hacks 7 | . 4 1 1 . 1 Terminals 3 | . 2 . 1 . . Botnet 1 | . . . 1 . . Sabotage 2 | . 2 . . . . Fabricators . | . . . . . . Repair Stations . | . . . . . . Recycling Units 4 | . 2 1 . . 1 Tunnel 4 | . 2 1 . . 1 Scanalyzers . | . . . . . . Garrison Access . | . . . . . . Data Cores Recovered . | . . . . . . Used . | . . . . . . Hacking Detections 13 | . 4 2 2 3 2 Full Trace Events 3 | . 1 . . 1 1 Feedback Events 1 | . . . . . 1 Corruption 1 | . . . . . 1 Feedback Blocked . | . . . . . . Robot Schematics Acquired . | . . . . . . Robots Built . | . . . . . . Authchips . | . . . . . . Time . | . . . . . . Total Robot Build Rating . | . . . . . . Part Schematics Acquired 1 | . 1 . . . . Parts Built . | . . . . . . Authchips . | . . . . . . Time . | . . . . . . Total Part Build Rating . | . . . . . . Part Studies Acquired 4 | . . 4 . . . Parts Repaired . | . . . . . . Time . | . . . . . . Parts Recycled . | . . . . . . Recycled Matter . | . . . . . . Retrieved Matter . | . . . . . . Retrieved Components . | . . . . . . Parts Scanalyzed . | . . . . . . Part Schematics Acquired . | . . . . . . Parts Damaged . | . . . . . . Bothacking | -11 -10 -9 -9 -9 -9 ------------ Run | Yrd Mat Mat Sto Gar Rec Used RIF Installer 1 | . . . . 1 . Robots Hacked . | . . . . . . Non-combat . | . . . . . . Combat . | . . . . . . Robot Hacks Applied . | . . . . . . Relay Couplers Released . | . . . . . . Fabnet Peak Effective % . | . . . . . . Robots Rewired 2 | . . . . 2 . Allies Hacked . | . . . . . . Hacks Repelled . | . . . . . . Allies | -11 -10 -9 -9 -9 -9 -------- Run | Yrd Mat Mat Sto Gar Rec Total Allies 2 | . . . . 2 . Largest Group 2 | . . . . 2 2 Highest-Rated Group 70 | . . . . 70 70 Highest-Rated Ally 39 | . . . . 39 39 Total Orders . | . . . . . . Ally Attacks 32 | . . . . 28 4 Total Damage 466 | . . . . 408 58 Kills 9 | . . . . 8 1 Allies Corrupted . | . . . . . . Allies Melted . | . . . . . . X0-1V1 Amusement Gains 123 | . 14 5 . 20 84 Average Entertainment 18 | . 10 9 5 19 24 Good Acts 11 | . . 5 . 5 1 Bad Acts 10 | . 1 1 . 6 2 Intel | -11 -10 -9 -9 -9 -9 ------- Run | Yrd Mat Mat Sto Gar Rec Active Infowar (turns) 1300 | 8 1292 . . . . Seismic 1300 | 8 1292 . . . . Robot Analysis Total 4 | . 2 2 . . . Derelict Logs Recovered . | . . . . . . Drone Launches . | . . . . . . Drone Recoveries . | . . . . . . Exploration | -11 -10 -9 -9 -9 -9 ------------- Run | Yrd Mat Mat Sto Gar Rec Turns Passed 4210 | 81 1444 224 132 1984 345 Spaces Moved 2053 | 8 704 123 50 991 177 Core . | . . . . . . Treads 1884 | . 583 83 50 991 177 Legs 8 | 8 . . . . . Wheels 161 | . 121 40 . . . Hover . | . . . . . . Flight . | . . . . . . Fastest Speed 85 | 120 95 85 155 152 160 Average Speed 153 | 120 148 132 155 157 160 Slowest Speed 225 | 120 160 155 155 225 160 Overloaded Moves . | . . . . . . Propulsion Burnouts . | . . . . . . Robots Hopped . | . . . . . . Potential Cave-ins . | . . . . . . Cave-ins Triggered . | . . . . . . Exploration Rate (%) 42 | 3 95 16 24 85 33 Regions Visited 5 Branch Regions 2 Pre-discovered Areas 4 | . 2 1 . . 1 Known Exits Taken 2 | . . 1 1 . . Unknown Exits Taken 2 | 1 1 . . . . Scrap Searched . | . . . . . . Spaces Dug 16 | . . . 2 14 . Terrain Destroyed 93 | . 6 . 2 85 . Melee 16 | . . . 2 14 . Projectile . | . . . . . . AOE 77 | . 6 . . 71 . Terrain Rammed . | . . . . . . Walls Destroyed . | . . . . . . Machines Disabled . | . . . . . . Actions | -11 -10 -9 -9 -9 -9 --------- Run | Yrd Mat Mat Sto Gar Rec Total 2682 | 58 973 156 72 1213 210 Wait 232 | 34 140 1 . 48 9 Move 2049 | 7 703 122 50 990 177 Hop . | . . . . . . Pick Up 42 | . 20 5 3 11 3 Fast Attach 12 | 1 2 . . 9 . Attach 14 | . 2 3 . 9 . Detach 1 | . . . . 1 . Swap 44 | 3 14 5 3 17 2 Drop 29 | . 15 5 1 6 2 Fire 213 | 13 68 14 13 94 11 Melee 22 | . . . 2 19 1 Ram . | . . . . . . Kick . | . . . . . . Crush 15 | . 9 1 . . 5 Escape Stasis 2 | . . . . 2 . Rewire 7 | . . . . 7 . Trap . | . . . . . . Miscellaneous . | . . . . . . Route ------- -11/Scrapyard -10/Materials (discovered 5 exits: *Mat x3 / [*Min] / [*Sub]) -9/Materials -9/Storage -9/Garrison (discovered 3 exits: *Rec x3) -9/Recycling History --------- Turn | Location | Event 21 | -11/Scrapyard | Discovered new exit (range 3) 82 | -11/Scrapyard | Entered Materials 83 | -10/Materials | Met a group of wandering Federalists 116 | -10/Materials | Discovered new exit (range 6) 238 | -10/Materials | Discovered new exit (range 9) 300 | -10/Materials | Build established: Mutant 558 | -10/Materials | Discovered new exit (range 11) 982 | -10/Materials | Discovered new exit (range 15) 1148 | -10/Materials | Discovered new exit (range 9) 1374 | -10/Materials | Prayed at D.C.S.S. Altar Unit 1377 | -10/Materials | X0-1V1 made a cryptic comment about sterilization and BL-4Z3 1510 | -10/Materials | Sterilization system engaged 1510 | -10/Materials | Non-combat units ordered to evacuate 1526 | -10/Materials | Entered another Materials area 1526 | -9/Materials | Evolved 2 slots: Propulsion x1, Weapon x1 1542 | -9/Materials | X0-1V1 sent you to a vault 1588 | -9/Materials | Energy capacity permanently improved by X0-1V1 (+200; -100 max core) 1702 | -9/Materials | X0-1V1 foreshadows a heat wave 1705 | -9/Materials | X0-1V1 released a cloud of subatomizers 1715 | -9/Materials | Discovered new exit (range 15) 1748 | -9/Materials | Identified exit to Storage 1750 | -9/Materials | Entered Storage 1882 | -9/Storage | Identified exit to Garrison 1882 | -9/Storage | Entered Garrison 1887 | -9/Garrison | Triggered checkpoint 2156 | -9/Garrison | Triggered checkpoint 2193 | -9/Garrison | Triggered checkpoint 2196 | -9/Garrison | Triggered checkpoint 2247 | -9/Garrison | Destroyed 13 combat bots 2302 | -9/Garrison | Build established: Gunner 2326 | -9/Garrison | Discovered new exit (range 10) 2370 | -9/Garrison | Triggered checkpoint 2468 | -9/Garrison | X0-1V1 caused items to flee you 2632 | -9/Garrison | Items stopped fleeing you 2896 | -9/Garrison | Triggered checkpoint 2913 | -9/Garrison | Discovered new exit (range 8) 3163 | -9/Garrison | Discovered new exit (range 12) 3410 | -9/Garrison | Installed Relay Interface Framework 3540 | -9/Garrison | Build established: Mutant 3583 | -9/Garrison | X0-1V1 activates XOMVISION 3866 | -9/Garrison | Entered Recycling 3866 | -9/Recycling | Accompanied by 2 allies 4170 | -9/Recycling | Scanned before Scraplab entrance 4184 | -9/Recycling | Angered Scraplab inhabitants 4211 | -9/Recycling | Self-destructed Last Messages --------------- 04184_ X0-1V1 roars with laughter! 04184_ Critical hit (Burn: +50). 04187_ X0-1V1 briefly opens a portal to the matter dimension. 04187_ AZ-YFT(j) destroyed. 04188_ Acquired 154 matter. 04197_ ST-PLM(j): "Defend the Scraplab!" 04203_ Imp. Ion Engine+ destroyed. X0-1V1's Piety Tracker suddenly appears amidst shimmering waves of color. 04208_ X0-1V1: "The ol' switcheroo!" ST-PLM(j) form resolidifies at new position. CM-CDK(j) form resolidifies at new position. PJ-4O4(c) form resolidifies at new position. R-06 Scavenger form resolidifies at new position. Form resolidifies at new position. 04208_ Machine disabled. 04210_ Critical hit (Burn: +50). 04211_ Scraplab SEP disabled. Map ----- +----------------------------------------------------+ | | | | | | | | | | | | | | | | | | | | | | | | | | | | | | | | | | | | | | | | | | | | | ?????????????????????#########?????????????? | | ?????????????????????#"""""""#?????????????? | | ?????????????????????# " " ## #??????????? | | ???????????????####### @ #??????????? | | ??????????????##=cj ; ! #??????????? | | ??????????????#%=#####j "#??????????? | | ??????????????##%#???# r ""#??????????? | | ???????????????#!#???# & "& X ""???????????? | | ???????????????# #???#"""""""" ???????????? | | ????????????#####################??????????? | | ????????????# #??????????????????????? | | ????????????# #??????????????????????? | | ????????????# #??????????????????????? | | ????????????# #??????????????????????? | | ????????????####+####??????????????????????? | | ???????????????# #?????????????????????????? | | ???????????????# #?????????????????????????? | | ???????????????# #?????????????????????????? | | ????????????####+#####?????????????????????? | | ????????????# ! #####?????????????????? | | ????????????# + #?????????????????? | | ????????????# ! ! ### #?????????????????? | | ????????????# #?# #?????????????????? | | ????????????# !! !#?# #?????????????????? | | ????????????# !! ! #?# ###???????????????? | | ????????????#! #?# # ####????????????? | | ????????????# #?# # #????????????? | | ????????????# !!#?# # =#????????????? | +----------------------------------------------------+ Best States ------------- Heat Dissipation 47 Energy Generation 32 Energy Capacity 1265 Matter Stores 900 Matter Capacity 900 Sight Range 16 Terrain Scan Density 10 Armor Coverage 225 Evasion (%) 45 Recoil Reduction 3 Item Schematics ----------------- Huge Storage Unit | -10/Materials | Hacked Robot Schematics ------------------ None Fabricated ------------ Nothing Repaired ---------- Nothing Studied --------- Hvy. Assault Rifle | -9/Materials | Hacked Imp. Ion Engine | -9/Materials | Hacked Wheel | -9/Materials | Hacked Lgt. Treads | -9/Materials | Hacked Alien Tech Used ----------------- None Achievements -------------- None Challenges ------------ None Game ------ Seed ReflexSlugMonowheel Manual? 0 Play Time 00:28:01 Cumulative 685.1 hours Start 2026.09.16 @ 10:13:40 End 2026.09.16 @ 10:49:24 Sessions 1 Manual Loads 0 Difficulty Rogue Special Mode None Game No. 619 Rogue 583 Adventurer 36 Explorer 0 Win Type - Total 8 Types 2/2/0/1/1/0/0/2/0/0 Lore% 86 Gallery% 76 Achievement% 70 Wizard Run 0 Options --------- Layout 1 ASCII 0 Keyboard 0 Movement Numpad Keybinds 0 Fullscreen 1 Font 48/Smallcaps Map View 50x35 Zoom Use 0% Tactical HUD 1 Map Filters NONE Filters NONE Steam 1 RUN: 1ab80c88-fce2-4e24-9be5-dce4259f2016